fUSD/lending_fUSD_20260525
["ID","MTS","AMOUNT","RATE_DAILY","PERIOD"]
[422980405,1779700246000,-157.0,0.00014702,2]
[422980423,1779700246000,-209.239854,0.00014746,2]
[422980440,1779700246000,-2006.0,0.000148,2]
[422980421,1779700246000,-150.0,0.00014737,2]
[422980436,1779700246000,-150.0,0.00014791,2]
[422980442,1779700246000,-1430.55555,0.0001485,2]
[422980438,1779700246000,-150.0,0.00014799,2]
[422980433,1779700246000,-226.2683486,0.00014789,2]
[422980435,1779700246000,-3306.07475076,0.0001479,2]
[422980429,1779700246000,-2566.0063677,0.00014789,2]
[422980427,1779700246000,-262.9166144,0.00014789,2]
[422980419,1779700246000,-1300.0,0.00014726,2]
[422980417,1779700246000,-150.0,0.00014726,2]
[422980425,1779700246000,-700.0,0.00014786,2]
[422980431,1779700246000,-176.8932417,0.00014789,2]
[422980521,1779700247000,-580.57,0.00014998,2]
[422980535,1779700247000,-1026.05,0.00014998,2]
[422980517,1779700247000,-151.0,0.00014996,2]
[422980519,1779700247000,-154.40903449,0.00014996,2]
[422980531,1779700247000,-1026.05,0.00014998,2]
[422980512,1779700247000,-150.0,0.00014986,2]
[422980529,1779700247000,-580.57,0.00014998,2]
[422980527,1779700247000,-580.57,0.00014998,2]
[422980525,1779700247000,-580.57,0.00014998,2]
[422980515,1779700247000,-151.0,0.00014996,2]
[422980523,1779700247000,-580.57,0.00014998,2]
[422980533,1779700247000,-1026.05,0.00014998,2]
[422980538,1779700247000,-1026.05,0.00014998,2]
[422980558,1779700247000,-707.16647587,0.00014999,2]
[422980552,1779700247000,-782.19,0.00014998,2]
[422980542,1779700247000,-150.0,0.00014998,2]
[422980553,1779700247000,-300.0,0.00014998,2]
[422980554,1779700247000,-411442.27560216,0.00014999,2]
[422980555,1779700247000,-14950.81141236,0.00014999,2]
[422980544,1779700247000,-782.19,0.00014998,2]
[422980557,1779700247000,-370.45,0.00014999,2]
[422980550,1779700247000,-782.19,0.00014998,2]
[422980546,1779700247000,-782.19,0.00014998,2]
[422980556,1779700247000,-822.41952396,0.00014999,2]
[422980548,1779700247000,-782.19,0.00014998,2]
[422980559,1779700247000,-1668.73,0.00014999,2]
[422980539,1779700247000,-1026.05,0.00014998,2]
[422980927,1779701056000,151.19,5.291e-05,2]
[422980926,1779701056000,151.19,4.913e-05,2]
[422980929,1779701057000,151.19,6.047e-05,2]
[422980928,1779701057000,151.19,5.669e-05,2]
[422980931,1779701057000,151.19,6.803e-05,2]
[422980930,1779701057000,151.19,6.425e-05,2]
[422980936,1779701058000,151.19,8.692e-05,2]
[422980935,1779701058000,151.19,8.314e-05,2]
[422980934,1779701058000,151.19,7.936e-05,2]
[422980933,1779701058000,151.19,7.558e-05,2]
[422980932,1779701058000,151.19,7.181e-05,2]
[422980937,1779701084000,-2742.8267586,9.04e-05,2]
[422980941,1779701171000,-1200.0,9.039e-05,2]
[422980942,1779701171000,-300.0,9.039e-05,2]
[422980943,1779701171000,-31500.0,9.04e-05,2]
[422980946,1779701288000,3376.253449,7.945e-05,2]
[422980950,1779701431000,-857.03856977,9.04e-05,2]
[422980951,1779701431000,-200.26596976,9.04e-05,2]
[422980955,1779701431000,-209.92478006,9.07e-05,2]
[422980952,1779701431000,-288.05198132,9.054e-05,2]
[422980954,1779701431000,-250.0,9.055e-05,2]
[422980958,1779701431000,-150.0,9.129e-05,2]
[422980957,1779701431000,-319.62,9.107e-05,2]
[422980959,1779701431000,-336.67304992,9.151e-05,2]
[422980953,1779701431000,-711.94801868,9.054e-05,2]
[422980960,1779701431000,-1990.58,9.202e-05,2]
[422980961,1779701431000,-165.8,9.429e-05,2]
[422980956,1779701431000,-151.19,9.07e-05,2]
[422980964,1779701432000,-150.0,9.447e-05,2]
[422980962,1779701432000,-300.0,9.447e-05,2]
[422980969,1779701432000,-169.79,9.511e-05,2]
[422980970,1779701432000,-89338.47725674,9.511e-05,2]
[422980968,1779701432000,-1000.0,9.51e-05,2]
[422980966,1779701432000,-66314.18160806,9.448e-05,2]
[422980967,1779701432000,-31352.66839194,9.448e-05,2]
[422980965,1779701432000,-151.19,9.448e-05,2]
[422980963,1779701432000,-1200.0,9.447e-05,2]
[422981050,1779701438000,-308.84379003,9.511e-05,2]
[422981048,1779701438000,-1170.75638054,9.511e-05,2]
[422981051,1779701438000,-713.71647197,9.511e-05,2]
[422981052,1779701438000,-548.60231636,9.511e-05,2]
[422981053,1779701438000,-10391.57037895,9.511e-05,2]
[422981054,1779701438000,-1800.95265561,9.511e-05,2]
[422981049,1779701438000,-1325.95231697,9.511e-05,2]
[422981072,1779701440000,-151.19,9.826e-05,2]
[422981061,1779701440000,-1419.7341126,9.511e-05,2]
[422981065,1779701440000,-595.85768052,9.511e-05,2]
[422981066,1779701440000,-387.98,9.511e-05,2]
[422981067,1779701440000,-2874.02810723,9.511e-05,2]
[422981068,1779701440000,-18618.08853248,9.511e-05,2]
[422981075,1779701440000,-5845.07777545,0.0001,2]
[422981070,1779701440000,-1371.0,9.657e-05,2]
[422981076,1779701440000,-150.0,0.0001,2]
[422981073,1779701440000,-250.0,9.944e-05,2]
[422981071,1779701440000,-2000.0,9.769e-05,2]
[422981069,1779701440000,-849.16563291,9.53e-05,2]
[422981078,1779701440000,-4000.0,0.00010027,2]
[422981082,1779701440000,-80.64499221,0.00010278,2]
[422981077,1779701440000,-6781.06752818,0.0001002,2]
[422981079,1779701440000,-262.76337469,0.000101,2]
[422981080,1779701440000,-272.92551869,0.00010177,2]
[422981081,1779701440000,-299.66448131,0.00010177,2]
[422981074,1779701440000,-1178.8425066,0.0001,2]
[422981101,1779701443000,-215.72024113,0.00010299,2]
[422981100,1779701443000,-284.27975887,0.00010299,2]
[422981096,1779701443000,-3919.35500779,0.00010278,2]
[422981098,1779701443000,-500.0,0.00010299,2]
[422981097,1779701443000,-500.0,0.00010299,2]
[422981104,1779701443000,-209.81519178,0.00010299,2]
[422981099,1779701443000,-500.0,0.00010299,2]
[422981105,1779701443000,-355.39907549,0.000103,2]
[422981107,1779701443000,-1554.38999996,0.000103,2]
[422981103,1779701443000,-500.0,0.00010299,2]
[422981102,1779701443000,-500.0,0.00010299,2]
[422981108,1779701443000,-4542.40479413,0.000103,2]
[422981110,1779701443000,-968.38065445,0.000103,2]
[422981112,1779701443000,-12603.70379702,0.000103,2]
[422981111,1779701443000,-832.23372753,0.000103,2]
[422981109,1779701443000,-1135.95402815,0.000103,2]
[422981113,1779701443000,-290.0,0.000103,2]
[422981106,1779701443000,-1647.46000004,0.000103,2]
[422981205,1779701446000,-500.0,0.00010548,2]
[422981190,1779701446000,-1680.0,0.00010392,2]
[422981204,1779701446000,-500.0,0.00010548,2]
[422981201,1779701446000,-272.90234396,0.00010548,2]
[422981183,1779701446000,-112121.15585686,0.000103,2]
[422981179,1779701446000,-3269.05551518,0.000103,2]
[422981185,1779701446000,-940.37684847,0.00010307,2]
[422981181,1779701446000,-633.27435219,0.000103,2]
[422981180,1779701446000,-4033.07173078,0.000103,2]
[422981178,1779701446000,-900.0,0.000103,2]
[422981195,1779701446000,-217.68901476,0.00010459,2]
[422981188,1779701446000,-420.0,0.00010392,2]
[422981206,1779701446000,-500.0,0.00010548,2]
[422981182,1779701446000,-732.23943309,0.000103,2]
[422981207,1779701446000,-640.54326314,0.00010548,2]
[422981217,1779701446000,-151.0,0.00010549,2]
[422981216,1779701446000,-188.484285,0.00010549,2]
[422981215,1779701446000,-188.484285,0.00010549,2]
[422981213,1779701446000,-188.484285,0.00010549,2]
[422981218,1779701446000,-1097167.6924701,0.00010549,2]
[422981212,1779701446000,-280.34358231,0.00010548,2]
[422981197,1779701446000,-4000.0,0.00010529,2]
[422981214,1779701446000,-188.484285,0.00010549,2]
[422981192,1779701446000,-255.0,0.00010392,2]
[422981208,1779701446000,-242.44980837,0.00010548,2]
[422981211,1779701446000,-500.30778869,0.00010548,2]
[422981209,1779701446000,-500.0,0.00010548,2]
[422981210,1779701446000,-500.0,0.00010548,2]
[422981199,1779701446000,-261.31631874,0.00010539,2]
[422981242,1779701587000,1414.370573,7.945e-05,2]
[422981268,1779702017000,858.6,5.455e-05,2]
[422981272,1779702018000,858.6,6.603e-05,2]
[422981271,1779702018000,858.6,6.316e-05,2]
[422981270,1779702018000,858.6,6.029e-05,2]
[422981269,1779702018000,858.6,5.742e-05,2]
[422981275,1779702018000,858.6,6.891e-05,2]
[422981276,1779702019000,858.6,7.178e-05,2]
[422981279,1779702019000,858.6,8.039e-05,2]
[422981278,1779702019000,858.6,7.752e-05,2]
[422981277,1779702019000,858.6,7.465e-05,2]
[422981280,1779702020000,858.6,8.326e-05,2]
[422981281,1779702020000,858.6,8.613e-05,2]
[422981306,1779702188000,1650.0,7.945e-05,2]
[422981381,1779702329000,-858.6,8.9e-05,2]
[422981384,1779702609000,-250.0,9.044e-05,2]
[422981615,1779702804000,-250.0,9.187e-05,2]
[422981620,1779702926000,-250.0,9.187e-05,2]
[422981621,1779702926000,-250.0,9.187e-05,2]
[422981624,1779702927000,-108.6,9.385e-05,2]
[422981625,1779702927000,-141.4,9.474e-05,2]
[422981623,1779702927000,-141.4,9.385e-05,2]
[422981622,1779702927000,-108.6,9.187e-05,2]
[422981627,1779702928000,-250.0,9.474e-05,2]
[422981626,1779702928000,-250.0,9.474e-05,2]
[422981628,1779702929000,-217.2,9.474e-05,2]
[422981629,1779702929000,-32.8,9.475e-05,2]
[422981631,1779702929000,-91.14846023,9.49e-05,2]
[422981630,1779702929000,-158.85153977,9.475e-05,2]
[422981632,1779702929000,-250.0,9.49e-05,2]
[422981633,1779702930000,-250.0,9.49e-05,2]
[422981635,1779702931000,-42.64153977,9.49e-05,2]
[422981636,1779702931000,-207.35846023,9.558e-05,2]
[422981634,1779702931000,-250.0,9.49e-05,2]
[422981639,1779702932000,-50.0,9.558e-05,2]
[422981638,1779702932000,-200.0,9.405e-05,2]
[422981637,1779702932000,-250.0,9.558e-05,2]
[422981640,1779702933000,-250.0,9.558e-05,2]
[422981641,1779702933000,-250.0,9.384e-05,2]
[422981643,1779702933000,-237.93153977,9.558e-05,2]
[422981644,1779702933000,-12.06846023,9.6e-05,2]
[422981642,1779702933000,-250.0,9.384e-05,2]
[422981647,1779702934000,-250.0,9.342e-05,2]
[422981646,1779702934000,-250.0,9.342e-05,2]
[422981645,1779702934000,-250.0,9.6e-05,2]
[422981650,1779702935000,-858.6,9.558e-05,2]
[422981649,1779702935000,-266.7,9.558e-05,2]
[422981648,1779702935000,-591.9,9.342e-05,2]
[422981679,1779702936000,-705.59,0.00010719,2]
[422981684,1779702936000,-150.0,0.00010959,2]
[422981683,1779702936000,-150.0,0.00010959,2]
[422981676,1779702936000,-13025.28,0.00010699,2]
[422981680,1779702936000,-3944.02,0.00010779,2]
[422981682,1779702936000,-4545.47,0.00010959,2]
[422981685,1779702936000,-2500.0,0.00010971,2]
[422981681,1779702936000,-858.6,0.0001091,2]
[422981686,1779702936000,-3944.02,0.0001103,2]
[422981690,1779702936000,-9715.97,0.0001116,2]
[422981688,1779702936000,-929.08873404,0.00011099,2]
[422981689,1779702936000,-929.08873404,0.00011099,2]
[422981677,1779702936000,-999.99,0.000107,2]
[422981691,1779702936000,-1520.26,0.00011227,2]
[422981692,1779702936000,-190.7,0.00011233,2]
[422981693,1779702936000,-161.57,0.00011244,2]
[422981694,1779702936000,-2351.71410425,0.00011415,2]
[422981695,1779702936000,-30859.86079575,0.00011415,2]
[422981696,1779702936000,-929.08873404,0.00011556,2]
[422981698,1779702936000,-500.0,0.00011881,2]
[422981687,1779702936000,-169.79,0.00011096,2]
[422981678,1779702936000,-9999.99,0.000107,2]
[422981672,1779702936000,-3944.02,0.00010529,2]
[422981675,1779702936000,-858.6,0.00010623,2]
[422981703,1779702936000,-500.0,0.00011881,2]
[422981652,1779702936000,-456.35101781,9.558e-05,2]
[422981654,1779702936000,-385.37598275,9.558e-05,2]
[422981658,1779702936000,-858.6,9.761e-05,2]
[422981655,1779702936000,-1081.85156308,9.558e-05,2]
[422981661,1779702936000,-689.28,9.821e-05,2]
[422981656,1779702936000,-5799.06223494,9.558e-05,2]
[422981660,1779702936000,-152.22,9.795e-05,2]
[422981657,1779702936000,-59.74153977,9.6e-05,2]
[422981659,1779702936000,-1852.42,9.783e-05,2]
[422981663,1779702936000,-7573.0,0.00010038,2]
[422981664,1779702936000,-858.6,0.00010049,2]
[422981662,1779702936000,-3944.02,0.00010027,2]
[422981666,1779702936000,-858.6,0.00010336,2]
[422981669,1779702936000,-71101.4788015,0.00010516,2]
[422981670,1779702936000,-5577.1923221,0.00010516,2]
[422981671,1779702936000,-1086.5436575,0.00010516,2]
[422981667,1779702936000,-1000.0,0.00010515,2]
[422981665,1779702936000,-3944.02,0.00010278,2]
[422981668,1779702936000,-7002.2836118,0.00010515,2]
[422981673,1779702936000,-151.0,0.00010546,2]
[422981674,1779702936000,-151.0,0.00010546,2]
[422981701,1779702936000,-500.0,0.00011881,2]
[422981653,1779702936000,-719.62920142,9.558e-05,2]
[422981700,1779702936000,-500.0,0.00011881,2]
[422981726,1779702936000,-928.0,0.0001292,2]
[422981724,1779702936000,-169.79,0.00012681,2]
[422981725,1779702936000,-626.0,0.0001292,2]
[422981729,1779702936000,-1218.0,0.0001292,2]
[422981732,1779702936000,-150.0,0.0001292,2]
[422981731,1779702936000,-150.0,0.0001292,2]
[422981730,1779702936000,-531.913,0.0001292,2]
[422981735,1779702936000,-600.0,0.00013356,2]
[422981745,1779702936000,-819.0,0.00013581,5]
[422981746,1779702936000,-479.56153968,0.00013598,2]
[422981734,1779702936000,-161.57,0.00013118,2]
[422981740,1779702936000,-150.00000001,0.00013488,2]
[422981739,1779702936000,-150.0,0.00013488,2]
[422981736,1779702936000,-995.29,0.00013381,2]
[422981737,1779702936000,-929.08873404,0.00013467,2]
[422981738,1779702936000,-150.0,0.00013488,2]
[422981744,1779702936000,-150.0,0.00013488,2]
[422981741,1779702936000,-150.0,0.00013488,2]
[422981699,1779702936000,-500.0,0.00011881,2]
[422981743,1779702936000,-150.0,0.00013488,2]
[422981747,1779702936000,-333.53075235,0.00013616,5]
[422981727,1779702936000,-1210.63866791,0.0001292,2]
[422981728,1779702936000,-144.36133209,0.0001292,2]
[422981742,1779702936000,-150.0,0.00013488,2]
[422981722,1779702936000,-526.43,0.00012329,2]
[422981733,1779702936000,-929.08873404,0.00012989,2]
[422981697,1779702936000,-500.0,0.00011881,2]
[422981704,1779702936000,-500.0,0.00011881,2]
[422981708,1779702936000,-150.0,0.00012094,2]
[422981705,1779702936000,-500.0,0.00011881,2]
[422981706,1779702936000,-500.0,0.00011881,2]
[422981707,1779702936000,-929.08873404,0.00012033,2]
[422981709,1779702936000,-150.0,0.00012094,2]
[422981711,1779702936000,-500.0,0.00012094,2]
[422981721,1779702936000,-152.0,0.00012254,7]
[422981702,1779702936000,-500.0,0.00011881,2]
[422981714,1779702936000,-500.0,0.00012094,2]
[422981710,1779702936000,-156.41845874,0.00012094,2]
[422981717,1779702936000,-150.0,0.00012094,2]
[422981716,1779702936000,-150.0,0.00012094,2]
[422981719,1779702936000,-152.0,0.00012237,7]
[422981720,1779702936000,-152.0,0.00012237,7]
[422981718,1779702936000,-203.8585432,0.00012094,2]
[422981715,1779702936000,-541.74304789,0.00012094,2]
[422981713,1779702936000,-500.0,0.00012094,2]
[422981712,1779702936000,-500.0,0.00012094,2]
[422981723,1779702936000,-929.08873404,0.00012511,2]
[422981768,1779702937000,-200.0,0.00013699,2]
[422981771,1779702937000,-479.56153966,0.00013887,2]
[422981770,1779702937000,-166.66,0.00013836,2]
[422981767,1779702937000,-166.66,0.00013699,2]
[422981769,1779702937000,-479.56153966,0.00013743,2]
[422981772,1779702937000,-929.08873404,0.00013944,2]
[422981766,1779702937000,-500.0,0.00013698,2]
[422981782,1779702937000,-200.0,0.00014,5]
[422981776,1779702937000,-7239.34727864,0.00013992,2]
[422981777,1779702937000,-8625.53707306,0.00013992,2]
[422981784,1779702937000,-700.0,0.000141,5]
[422981780,1779702937000,-797.76336,0.00014,2]
[422981779,1779702937000,-250.0,0.00014,2]
[422981774,1779702937000,-658.0,0.00013972,5]
[422981783,1779702937000,-479.56153966,0.00014032,2]
[422981775,1779702937000,-166.66,0.00013973,2]
[422981764,1779702937000,-500.0,0.00013698,2]
[422981759,1779702937000,-500.0,0.00013698,2]
[422981762,1779702937000,-500.0,0.00013698,2]
[422981781,1779702937000,-300.0,0.00014,5]
[422981748,1779702937000,-300.00158029,0.00013616,5]
[422981749,1779702937000,-645.46766736,0.00013616,5]
[422981756,1779702937000,-500.0,0.00013698,2]
[422981751,1779702937000,-500.0,0.00013698,2]
[422981752,1779702937000,-500.0,0.00013698,2]
[422981754,1779702937000,-500.0,0.00013698,2]
[422981765,1779702937000,-466.95324064,0.00013698,2]
[422981753,1779702937000,-500.0,0.00013698,2]
[422981750,1779702937000,-166.29,0.00013654,2]
[422981758,1779702937000,-500.0,0.00013698,2]
[422981760,1779702937000,-500.0,0.00013698,2]
[422981757,1779702937000,-500.0,0.00013698,2]
[422981761,1779702937000,-500.0,0.00013698,2]
[422981763,1779702937000,-500.0,0.00013698,2]
[422981773,1779702937000,-156.0,0.00013967,2]
[422981755,1779702937000,-500.0,0.00013698,2]
[422981785,1779702937000,-500.0,0.000141,5]
[422981820,1779702937000,-479.56153966,0.00014755,2]
[422981787,1779702937000,-479.56153966,0.00014177,2]
[422981802,1779702937000,-151.52,0.00014415,2]
[422981804,1779702937000,-479.56153966,0.00014466,2]
[422981806,1779702937000,-300.0,0.000145,5]
[422981812,1779702937000,-477.41,0.00014616,2]
[422981811,1779702937000,-477.41,0.00014615,2]
[422981813,1779702937000,-477.43025697,0.00014617,2]
[422981814,1779702937000,-221.34,0.00014622,2]
[422981815,1779702937000,-7346.44446312,0.000147,2]
[422981816,1779702937000,-1202.19213808,0.000147,2]
[422981817,1779702937000,-300.0,0.000147,5]
[422981822,1779702937000,-277.6720554,0.00014767,2]
[422981819,1779702937000,-600.0,0.00014726,2]
[422981818,1779702937000,-200.0,0.000147,5]
[422981821,1779702937000,-3539.9341861,0.00014767,2]
[422981778,1779702937000,-1244.439816,0.00013992,2]
[422981805,1779702937000,-26486.65,0.00014497,2]
[422981799,1779702937000,-1200.0,0.000144,5]
[422981810,1779702937000,-479.56153966,0.00014611,2]
[422981807,1779702937000,-200.0,0.000145,5]
[422981797,1779702937000,-166.66,0.00014384,2]
[422981786,1779702937000,-166.66,0.0001411,2]
[422981788,1779702937000,-270.14786823,0.000142,5]
[422981808,1779702937000,-300.0,0.000146,5]
[422981791,1779702937000,-166.66,0.00014247,2]
[422981796,1779702937000,-479.56153966,0.00014321,2]
[422981790,1779702937000,-700.0,0.000142,5]
[422981792,1779702937000,-169.79,0.00014266,2]
[422981789,1779702937000,-829.85213177,0.000142,5]
[422981794,1779702937000,-1000.0,0.000143,5]
[422981793,1779702937000,-1500.0,0.000143,5]
[422981798,1779702937000,-1800.0,0.000144,5]
[422981801,1779702937000,-3078.741,0.00014415,2]
[422981800,1779702937000,-166.29,0.00014405,2]
[422981803,1779702937000,-929.08873404,0.00014422,2]
[422981809,1779702937000,-200.0,0.000146,5]
[422981795,1779702937000,-500.0,0.00014301,2]
[422981834,1779702938000,-150.0,0.00014924,2]
[422981831,1779702938000,-929.08873404,0.000149,2]
[422981827,1779702938000,-500.0,0.00014899,2]
[422981828,1779702938000,-10000.0,0.000149,2]
[422981825,1779702938000,-200.0,0.00014873,2]
[422981829,1779702938000,-435.3780295,0.000149,2]
[422981832,1779702938000,-968.0,0.000149,5]
[422981830,1779702938000,-479.56153966,0.000149,2]
[422981823,1779702938000,-300.0,0.000148,5]
[422981833,1779702938000,-600.0,0.000149,5]
[422981826,1779702938000,-5000.0,0.00014899,2]
[422981836,1779702938000,-170.18445324,0.00014967,2]
[422981824,1779702938000,-200.0,0.000148,5]
[422981838,1779702938000,-161.57,0.00014991,2]
[422981847,1779702938000,-2052.22,0.00014999,2]
[422981837,1779702938000,-150.0,0.00014986,2]
[422981846,1779702938000,-625.54012998,0.00014999,2]
[422981845,1779702938000,-150.0,0.0001292,2]
[422981844,1779702938000,-777.20832332,0.00014999,2]
[422981848,1779702938000,-545.1400985,0.00014999,2]
[422981841,1779702938000,-74379.72118508,0.00014999,2]
[422981842,1779702938000,-26466.03020911,0.00014999,2]
[422981839,1779702938000,-150.0,0.00014998,2]
[422981840,1779702938000,-2861.56570972,0.00014999,2]
[422981835,1779702938000,-239.28357634,0.0001496,2]
[422981843,1779702938000,-585.0,0.00014999,2]
[422981852,1779702939000,-858.6,9.6e-05,2]
[422981851,1779702939000,-858.6,9.6e-05,2]
[422981850,1779702939000,-258.0401911,0.0001045,2]
[422981849,1779702939000,-250.0,0.00010106,2]
[422981855,1779702940000,-858.6,9.6e-05,2]
[422981854,1779702940000,-858.6,9.6e-05,2]
[422981853,1779702940000,-858.6,9.6e-05,2]
[422981857,1779702941000,-858.6,9.6e-05,2]
[422981856,1779702941000,-858.6,9.6e-05,2]
[422981858,1779702942000,-858.6,9.6e-05,2]
[422981860,1779702942000,-858.6,9.6e-05,2]
[422981859,1779702942000,-858.6,9.6e-05,2]
[422981861,1779702943000,-608.6,9.6e-05,2]
[422981862,1779702943000,-608.6,9.6e-05,2]
[422981864,1779702943000,-411.81,0.00011414,2]
[422981863,1779702943000,-196.79,9.6e-05,2]
[422981869,1779702943000,-366.10413043,0.00011414,2]
[422981867,1779702943000,-133.89586957,0.00011414,2]
[422981866,1779702943000,-386.51413043,0.00011414,2]
[422981868,1779702943000,-152.0,0.00011029,2]
[422981870,1779702943000,-90.49586957,0.00011414,2]
[422981865,1779702943000,-88.19,0.00011414,2]
[422981877,1779702944000,-591.4,9.557e-05,2]
[422981878,1779702944000,-17.2,0.00010971,2]
[422981876,1779702944000,-608.6,9.557e-05,2]
[422981875,1779702944000,-608.6,0.00010971,2]
[422981873,1779702944000,-300.90413043,0.00011414,2]
[422981874,1779702944000,-307.69586957,0.00011414,2]
[422981872,1779702944000,-199.09586957,0.00011414,2]
[422981871,1779702944000,-409.50413043,0.00011414,2]
[422981890,1779703469000,642.51,0.00021,120]
[422981923,1779703832000,-250.0,9.74e-05,2]
[422981941,1779703832000,-316.96,0.00012026,2]
[422981945,1779703832000,-150.0,0.0001212,2]
[422981942,1779703832000,-9999.99,0.00012068,2]
[422981944,1779703832000,-500.0,0.00012077,2]
[422981946,1779703832000,-150.0,0.00012121,2]
[422981956,1779703832000,-177.97,0.00012226,2]
[422981958,1779703832000,-200.0,0.00012234,2]
[422981960,1779703832000,-152.0,0.00012254,7]
[422981962,1779703832000,-152.0,0.00012286,7]
[422981971,1779703832000,-1187.41,0.00012381,2]
[422981976,1779703832000,-1630.57,0.00013059,2]
[422981972,1779703832000,-152.0,0.00012591,30]
[422981921,1779703832000,-363.22867442,9.6e-05,2]
[422981966,1779703832000,-438.69,0.00012329,2]
[422981964,1779703832000,-152.0,0.00012312,7]
[422981974,1779703832000,-1680.0,0.00012946,2]
[422981969,1779703832000,-166.91,0.0001234,2]
[422981943,1779703832000,-150.99,0.00012068,2]
[422981922,1779703832000,-1702.85132558,9.6e-05,2]
[422981939,1779703832000,-545.82,0.00012002,2]
[422981952,1779703832000,-1000.0,0.00012192,2]
[422981925,1779703832000,-250.0,0.0001056,2]
[422981935,1779703832000,-303.50984944,0.0001177,2]
[422981927,1779703832000,-160.7504,0.00010871,2]
[422981928,1779703832000,-160.0,0.00011023,2]
[422981926,1779703832000,-250.0,0.00010627,2]
[422981924,1779703832000,-1520.26,9.879e-05,2]
[422981932,1779703832000,-1200.0,0.00011769,2]
[422981929,1779703832000,-208.87966228,0.00011023,2]
[422981980,1779703832000,-1500.0,0.00013082,2]
[422981931,1779703832000,-2949.0,0.00011698,2]
[422981933,1779703832000,-200.0,0.0001177,2]
[422981934,1779703832000,-200.0,0.0001177,2]
[422981930,1779703832000,-215.38528485,0.00011023,2]
[422981936,1779703832000,-2929.0,0.00011985,2]
[422981938,1779703832000,-9999.99,0.00011985,2]
[422981948,1779703832000,-4999.99,0.00012121,2]
[422981950,1779703832000,-529.91084631,0.00012164,2]
[422981954,1779703832000,-21567.95,0.00012193,2]
[422981978,1779703832000,-500.0,0.00013082,2]
[422981993,1779703832000,-928.0,0.00013365,2]
[422981985,1779703832000,-12592.2294,0.00013265,2]
[422982035,1779703832000,-984.0,0.00013699,2]
[422982031,1779703832000,-984.0,0.00013699,2]
[422982039,1779703832000,-984.0,0.00013699,2]
[422982041,1779703832000,-984.0,0.00013699,2]
[422982051,1779703832000,-984.0,0.00013699,2]
[422982053,1779703832000,-984.0,0.00013699,2]
[422982055,1779703832000,-984.0,0.00013699,2]
[422982059,1779703832000,-984.0,0.00013699,2]
[422982043,1779703832000,-984.0,0.00013699,2]
[422982045,1779703832000,-984.0,0.00013699,2]
[422982047,1779703832000,-984.0,0.00013699,2]
[422982061,1779703832000,-984.0,0.00013699,2]
[422982049,1779703832000,-984.0,0.00013699,2]
[422981982,1779703832000,-255.0,0.00013199,2]
[422982069,1779703832000,-700.0,0.000138,5]
[422982067,1779703832000,-990.07549388,0.00013699,2]
[422982065,1779703832000,-984.0,0.00013699,2]
[422982029,1779703832000,-984.0,0.00013699,2]
[422982027,1779703832000,-984.0,0.00013699,2]
[422982063,1779703832000,-984.0,0.00013699,2]
[422982037,1779703832000,-984.0,0.00013699,2]
[422982033,1779703832000,-984.0,0.00013699,2]
[422981996,1779703832000,-1355.0,0.00013365,2]
[422981988,1779703832000,-600.0,0.00013356,2]
[422981990,1779703832000,-3547.0,0.00013365,2]
[422981999,1779703832000,-626.0,0.00013365,2]
[422982002,1779703832000,-519.0,0.00013365,2]
[422982007,1779703832000,-1224.0,0.00013365,2]
[422982005,1779703832000,-1271.0,0.00013365,2]